bitfinex/quotes_BTCUSD_20251010
["timestamp","ask_amount","ask_price","bid_price","bid_amount"]
[1760108330599,1.26987228,120840.0,120830.0,0.24376256]
[1760108330897,1.52439228,120840.0,120830.0,0.24376256]
[1760108331379,1.52439228,120840.0,120830.0,0.1606405]
[1760108331616,1.52439228,120840.0,120830.0,0.24376256]
[1760108331894,0.66187228,120840.0,120830.0,0.8368842]
[1760108332178,0.56187228,120840.0,120830.0,1.0916442]
[1760108332419,0.56187228,120840.0,120830.0,0.5307924]
[1760108332663,1.41667228,120840.0,120830.0,0.5307924]
[1760108332904,1.19979434,120840.0,120830.0,0.5307924]
[1760108333136,1.19979434,120840.0,120830.0,0.7916742]
[1760108333137,0.64499434,120840.0,120830.0,0.7916742]
[1760108333603,0.40451347,120840.0,120830.0,1.62951615]
[1760108333837,0.08312206,120850.0,120830.0,1.26764034]
[1760108334077,0.08312206,120850.0,120830.0,0.16072336]
[1760108334078,0.25476,120850.0,120830.0,0.16072336]
[1760108334324,0.3,120850.0,120830.0,0.16072336]
[1760108334555,0.64035898,120850.0,120830.0,0.16072336]
[1760108334797,0.00028281,120880.0,120830.0,1.00495816]
[1760108335045,0.29201897,120870.0,120840.0,0.26914312]
[1760108335274,4e-05,120890.0,120870.0,0.04521]
[1760108335481,4e-05,120890.0,120880.0,0.58335309]
[1760108335704,0.25504,120890.0,120880.0,0.58335309]
[1760108335962,4e-05,120890.0,120840.0,0.31435312]
[1760108336211,0.55496,120890.0,120850.0,1.00698971]
[1760108336454,0.55496,120890.0,120860.0,0.58335309]
[1760108336455,0.30004,120890.0,120860.0,0.58335309]
[1760108336693,0.55488,120880.0,120860.0,0.58335309]
[1760108336908,0.25488,120880.0,120860.0,0.67871309]
[1760108337136,0.55488,120880.0,120860.0,0.67871309]
[1760108337359,0.55476,120880.0,120860.0,0.67871309]
[1760108337579,0.3,120880.0,120850.0,1.1725668]
[1760108337824,0.55484,120880.0,120850.0,0.41544476]
[1760108338061,0.3,120880.0,120850.0,0.96864595]
[1760108338327,0.25484,120880.0,120850.0,8.286e-05]
[1760108338638,0.62597,120870.0,120850.0,8.286e-05]
[1760108338733,0.88097,120870.0,120850.0,8.286e-05]
[1760108338970,0.46548072,120860.0,120850.0,8.286e-05]
[1760108339204,0.6,120840.0,120830.0,0.1606405]
[1760108339478,1.18113,120840.0,120830.0,0.16079146]
[1760108339721,1.3466381,120840.0,120830.0,0.24391352]
[1760108339950,1.18113,120840.0,120830.0,0.24805792]
[1760108340189,1.0913981,120840.0,120830.0,0.24805792]
[1760108340428,1.4313981,120840.0,120830.0,0.16493586]
[1760108340658,2.67739356,120840.0,120830.0,0.16493586]
[1760108340917,2.59908486,120840.0,120830.0,0.24805792]
[1760108341159,2.69908485,120840.0,120830.0,0.24805792]
[1760108341370,1.88557175,120840.0,120830.0,0.24805792]
[1760108341586,2.14077175,120840.0,120830.0,0.24805792]
[1760108341814,1.76061177,120840.0,120830.0,0.24805792]
[1760108342034,1.86392046,120840.0,120830.0,0.24805792]
[1760108342264,1.96976047,120840.0,120830.0,0.24805792]
[1760108342492,2.59980484,120840.0,120830.0,0.23790373]
[1760108342713,2.59980484,120840.0,120800.0,0.01439127]
[1760108342714,1.0655492,120810.0,120800.0,0.01439127]
[1760108342941,1.0655492,120810.0,120800.0,0.09801379]
[1760108342942,2.58059229,120810.0,120800.0,0.09801379]
[1760108343191,1.50557661,120790.0,120780.0,0.08874612]
[1760108343390,2.18346328,120790.0,120780.0,0.08874612]
[1760108343601,2.55246779,120790.0,120780.0,0.08874612]
[1760108343818,3.46597278,120790.0,120780.0,0.08874612]
[1760108344039,2.35890369,120790.0,120780.0,0.08874612]
[1760108344261,2.62185655,120790.0,120780.0,0.08874612]
[1760108344498,2.33395123,120790.0,120780.0,0.08874612]
[1760108344725,1.82361461,120790.0,120780.0,0.08874612]
[1760108344949,2.26730809,120790.0,120780.0,0.08874612]
[1760108345176,2.11166808,120790.0,120780.0,0.08874612]
[1760108345421,2.26726809,120790.0,120780.0,0.08374612]
[1760108345690,2.56726809,120790.0,120780.0,0.0834916]
[1760108345899,1.71517147,120790.0,120780.0,0.0834916]
[1760108346124,2.56730809,120790.0,120780.0,0.0834916]
[1760108346430,2.31174809,120790.0,120780.0,0.0834916]
[1760108346647,1.98074808,120790.0,120780.0,0.08324269]
[1760108346873,0.77517598,120790.0,120780.0,0.08324269]
[1760108347144,0.77517598,120790.0,120780.0,0.08241309]
[1760108347145,0.70648869,120790.0,120780.0,0.08241309]
[1760108347583,0.40648869,120790.0,120780.0,0.17904309]
[1760108347812,0.10648869,120790.0,120780.0,0.68463341]
[1760108348046,0.08312206,120790.0,120780.0,1.2631813]
[1760108348276,0.30004,120840.0,120830.0,0.1655218]
[1760108348507,0.30004,120840.0,120830.0,0.00015125]
[1760108348733,0.35132,120840.0,120820.0,0.01655355]
[1760108348961,4e-05,120840.0,120820.0,0.01660408]
[1760108349188,0.39544,120840.0,120820.0,5.053e-05]
[1760108349414,0.12313,120830.0,120820.0,5.053e-05]
[1760108349624,0.38001,120830.0,120820.0,5.053e-05]
[1760108349841,0.12313,120830.0,120820.0,5.053e-05]
[1760108350061,0.12331,120830.0,120820.0,5.053e-05]
[1760108350300,0.13080836,120830.0,120820.0,5.053e-05]
[1760108350747,0.00749836,120830.0,120820.0,5.053e-05]
[1760108351045,0.00749836,120830.0,120820.0,1.08441699]
[1760108351291,0.00749836,120830.0,120820.0,0.37020243]
[1760108351498,0.00749836,120830.0,120820.0,0.63236793]
[1760108351722,4e-05,120840.0,120820.0,5.053e-05]
[1760108351951,0.10507104,120840.0,120820.0,5.053e-05]
[1760108352168,0.04583,120830.0,120820.0,5.053e-05]
[1760108352399,0.37924,120830.0,120820.0,5.053e-05]
[1760108352624,0.97932,120830.0,120820.0,5.053e-05]
[1760108352855,0.72232,120830.0,120820.0,5.053e-05]
[1760108353088,1.5726818,120830.0,120820.0,5.053e-05]
[1760108353314,0.6,120800.0,120780.0,0.08241309]
[1760108353555,0.29496,120790.0,120780.0,0.09070488]
[1760108353784,0.6711,120790.0,120780.0,0.09329706]
[1760108354293,0.9711,120790.0,120780.0,0.17641912]
[1760108354528,0.29496,120790.0,120780.0,0.17641912]
[1760108354788,0.3,120790.0,120780.0,0.17641912]
[1760108354999,0.33752,120820.0,120780.0,0.27304912]
[1760108355214,0.37107,120810.0,120790.0,0.08312206]
[1760108355437,0.37107,120810.0,120790.0,0.10050475]
[1760108355438,0.07535,120800.0,120790.0,0.10050475]
[1760108355657,0.07535,120800.0,120790.0,0.01738269]
[1760108355875,0.79819291,120800.0,120790.0,0.10050475]
[1760108356146,0.79815291,120800.0,120790.0,0.10050475]
[1760108356351,1.42835431,120800.0,120790.0,0.10050475]
[1760108356608,1.46757971,120800.0,120790.0,0.10050475]
[1760108356872,1.46757971,120800.0,120780.0,0.07367389]
[1760108356873,0.86557661,120790.0,120780.0,0.07367389]
[1760108357125,1.40770697,120790.0,120780.0,0.15679595]
[1760108357406,1.67292694,120790.0,120780.0,1e-08]
[1760108357596,1.16560403,120770.0,120760.0,0.0016]
[1760108357872,2.21027584,120770.0,120760.0,0.0021003]
[1760108358134,2.02789584,120770.0,120760.0,0.0021003]
[1760108358349,2.26332131,120770.0,120760.0,0.0021003]
[1760108358570,1.90616132,120770.0,120760.0,0.0021003]
[1760108358787,2.29609538,120770.0,120760.0,0.0021003]
[1760108358999,2.32924128,120770.0,120760.0,0.0021003]
[1760108359262,1.53337134,120770.0,120750.0,0.05959635]
[1760108359472,0.08312206,120760.0,120750.0,0.05110257]
[1760108359704,0.07486,120760.0,120740.0,0.13031782]
[1760108359919,0.3,120730.0,120720.0,0.0001]
[1760108360144,0.3,120730.0,120720.0,0.08322206]
[1760108360145,0.33869,120730.0,120720.0,0.08322206]
[1760108360362,0.3961,120730.0,120720.0,0.09154427]
[1760108360791,0.6539,120730.0,120720.0,0.0972499]
[1760108361002,0.57710717,120730.0,120720.0,0.0972499]
[1760108361218,0.58513857,120730.0,120720.0,0.08882769]
[1760108361438,1.18289857,120730.0,120720.0,0.08882769]
[1760108361646,0.92513857,120730.0,120720.0,0.08882769]
[1760108361929,0.92513857,120730.0,120720.0,0.00570563]
[1760108362355,1.47319647,120730.0,120720.0,0.00570563]
[1760108362590,1.10524173,120730.0,120720.0,0.00570563]
[1760108362810,1.09946063,120730.0,120720.0,0.00570563]
[1760108363018,0.91664945,120730.0,120720.0,0.00570563]
[1760108363231,0.48544945,120730.0,120720.0,0.00570563]
[1760108363440,1.47440945,120730.0,120720.0,0.00570563]
[1760108363650,0.78544945,120730.0,120720.0,0.00570563]
[1760108363893,1.05103055,120730.0,120720.0,0.00570563]
[1760108364108,0.75103055,120730.0,120720.0,0.00570563]
[1760108364357,0.27747055,120730.0,120720.0,0.00570563]
[1760108364568,0.25768,120730.0,120720.0,0.00570563]
[1760108364792,0.25764,120730.0,120720.0,0.08882769]
[1760108365022,0.9,120740.0,120720.0,0.00570563]
[1760108365242,0.38312206,120730.0,120720.0,0.00015087]
[1760108365462,0.64064206,120730.0,120720.0,0.00015087]
[1760108365700,0.08312206,120730.0,120720.0,0.12693277]
[1760108365911,0.68312206,120730.0,120700.0,0.0015771]
[1760108366121,0.34068206,120720.0,120700.0,0.00207694]
[1760108366356,0.38312206,120720.0,120700.0,0.00207694]
[1760108366561,0.85756,120710.0,120700.0,0.00207694]
[1760108366770,0.68312206,120710.0,120700.0,0.00207694]
[1760108367204,0.94052206,120710.0,120700.0,0.00207694]
[1760108367422,0.68312206,120710.0,120700.0,0.00207694]
[1760108367640,0.68312206,120710.0,120690.0,0.20299657]
[1760108367846,0.68362199,120710.0,120670.0,0.0301519]
[1760108368063,0.60049993,120710.0,120680.0,0.67023939]
[1760108368278,0.00049993,120710.0,120700.0,1.06633294]
[1760108368517,0.00049993,120710.0,120700.0,0.78575877]
[1760108368740,0.01,120730.0,120720.0,1.01802549]
[1760108368977,0.01,120730.0,120720.0,1.0430759]
[1760108369225,0.09312206,120730.0,120720.0,1.14789883]
[1760108369462,0.09312206,120730.0,120720.0,1.11470591]
[1760108369761,0.3,120780.0,120770.0,0.16560404]
[1760108369966,0.66681453,120820.0,120780.0,0.3701519]
[1760108369967,0.34508,120820.0,120780.0,0.3701519]
[1760108370191,0.40289,120820.0,120790.0,0.01655766]
[1760108370417,0.08312206,120800.0,120780.0,0.0301519]
[1760108370671,0.08312206,120790.0,120760.0,0.07327999]
[1760108370942,0.34060206,120790.0,120760.0,0.318858]
[1760108371157,0.25744,120810.0,120780.0,0.1738689]
[1760108371380,0.06529109,120810.0,120790.0,0.0301519]
[1760108371607,0.32584,120830.0,120790.0,0.1336754]
[1760108371608,0.02616,120830.0,120790.0,0.1336754]
[1760108371837,0.06516346,120820.0,120800.0,0.00827814]
[1760108372062,0.34687,120840.0,120810.0,0.25225806]
[1760108372292,0.06493498,120820.0,120810.0,0.3406111]
[1760108372516,0.25852,120840.0,120820.0,0.0301519]
[1760108372736,0.00553321,120820.0,120810.0,0.0301519]
[1760108372965,0.00553321,120820.0,120810.0,0.11332438]
[1760108373259,0.00553321,120820.0,120810.0,1.27098453]
[1760108373494,0.00553321,120820.0,120810.0,0.45332438]
[1760108373767,0.13125321,120820.0,120810.0,5.042e-05]
[1760108374230,0.06237321,120820.0,120810.0,5.042e-05]
[1760108374455,0.00553321,120820.0,120810.0,5.042e-05]
[1760108374717,0.17386145,120790.0,120760.0,4e-05]
[1760108374953,0.25788,120780.0,120760.0,4e-05]
[1760108375171,0.25792,120770.0,120760.0,4e-05]
[1760108375402,0.34933002,120790.0,120760.0,4e-05]
[1760108375641,0.25792,120780.0,120760.0,0.17402206]
[1760108375874,0.00015002,120790.0,120760.0,0.25401886]
[1760108375875,0.25807002,120790.0,120760.0,0.25401886]
[1760108376105,0.25799002,120790.0,120770.0,0.12983436]
[1760108376337,0.00015002,120790.0,120780.0,0.16559032]
[1760108376600,0.00015002,120790.0,120780.0,0.36972428]
[1760108376801,0.00015002,120790.0,120780.0,0.73472427]
[1760108377031,0.00015002,120790.0,120780.0,1.38913171]
[1760108377503,0.00015002,120790.0,120780.0,0.19327076]
[1760108377508,0.00015002,120790.0,120770.0,0.02499999]
[1760108377737,0.00015002,120790.0,120760.0,4e-05]
[1760108377738,0.11048,120780.0,120760.0,4e-05]
[1760108377977,0.00015002,120790.0,120760.0,0.19058383]
[1760108378212,0.04613,120770.0,120760.0,4e-05]
[1760108378440,0.8571338,120790.0,120760.0,4e-05]
[1760108378441,0.60015002,120790.0,120760.0,4e-05]
[1760108378683,0.26488404,120770.0,120760.0,4e-05]
[1760108378918,1.12276404,120770.0,120760.0,4e-05]
[1760108379173,0.90408,120770.0,120760.0,4e-05]
[1760108379416,0.25788,120770.0,120760.0,4e-05]
[1760108379891,0.01,120780.0,120770.0,0.0301519]
[1760108380127,0.01,120780.0,120770.0,0.0505693]
[1760108380372,0.01,120780.0,120770.0,0.3901554]
[1760108380618,0.00015002,120790.0,120780.0,0.0301519]
[1760108380859,0.00015002,120790.0,120780.0,0.11327396]
[1760108381089,0.00412871,120790.0,120780.0,0.23656349]
[1760108381313,0.00412871,120790.0,120780.0,0.40215381]
[1760108381530,0.00412871,120790.0,120780.0,0.36156348]
[1760108381779,0.00412871,120790.0,120780.0,0.5271538]
[1760108382704,0.00412871,120790.0,120780.0,0.27070348]
[1760108382951,0.00412871,120790.0,120780.0,0.24570349]
[1760108383421,0.05051871,120790.0,120780.0,0.1]
[1760108383667,0.10325871,120790.0,120780.0,0.1]
[1760108383903,0.36065871,120790.0,120780.0,0.1]
[1760108384132,0.10325871,120790.0,120780.0,0.1]
[1760108384384,0.3880814,120790.0,120780.0,0.1]
[1760108384649,1.59423739,120790.0,120780.0,0.1]
[1760108384898,1.61715148,120790.0,120780.0,0.1]
[1760108385151,1.60960249,120790.0,120780.0,0.1]
[1760108385375,1.36090381,120790.0,120780.0,0.1]
[1760108385602,1.10354381,120790.0,120780.0,0.1]
[1760108385843,0.76354381,120790.0,120780.0,0.1]
[1760108386076,0.30802871,120790.0,120780.0,0.1]
[1760108386311,0.00412871,120790.0,120780.0,0.1]
[1760108386774,0.36069871,120790.0,120780.0,0.1]
[1760108387687,0.10325871,120790.0,120780.0,0.1]
[1760108387902,0.36061871,120790.0,120780.0,0.1]
[1760108388164,0.10325871,120790.0,120780.0,0.1]
[1760108388409,1.31487934,120790.0,120780.0,0.1]
[1760108388660,2.8994101,120790.0,120780.0,0.1]
[1760108388924,3.17862463,120790.0,120780.0,0.1]
[1760108389167,3.0885101,120790.0,120780.0,0.1]
[1760108389446,1.3225101,120790.0,120780.0,0.1]
[1760108389645,1.5798701,120790.0,120780.0,0.1]
[1760108389883,1.3225101,120790.0,120780.0,0.1]
[1760108390138,0.7422829,120790.0,120780.0,0.1]
[1760108390372,0.02950517,120790.0,120780.0,0.1301519]
[1760108390608,0.01412871,120790.0,120780.0,0.14316709]
[1760108390849,0.01412871,120790.0,120780.0,0.22628915]
[1760108391087,0.01412871,120790.0,120780.0,0.14316709]
[1760108391321,0.01412871,120790.0,120780.0,0.1]
[1760108391322,1.55668739,120790.0,120780.0,0.1]
[1760108391546,1.66586617,120790.0,120780.0,0.1]
[1760108391776,1.66586617,120790.0,120780.0,0.0995]
[1760108392009,1.97343896,120790.0,120780.0,0.0995]
[1760108392245,1.71567896,120790.0,120780.0,0.0995]
[1760108392470,2.43991349,120790.0,120780.0,0.01824124]
[1760108392829,2.09551349,120790.0,120780.0,0.01824124]
[1760108392909,1.99561349,120790.0,120780.0,0.01824124]
[1760108393129,1.99605349,120790.0,120780.0,0.01824124]
[1760108393396,1.73741349,120790.0,120780.0,0.01824124]
[1760108393633,6.68769286,120790.0,120780.0,0.01824124]
[1760108393867,2.69225833,120790.0,120780.0,0.00769551]
[1760108394108,6.45560404,120770.0,120760.0,4e-05]
[1760108394334,2.21926933,120770.0,120760.0,4e-05]
[1760108394567,1.99433271,120770.0,120760.0,4e-05]
[1760108394800,1.97253805,120770.0,120760.0,4e-05]
[1760108395044,1.67253805,120770.0,120760.0,4e-05]
[1760108395502,1.93221805,120770.0,120760.0,4e-05]
[1760108395722,7.57240665,120770.0,120760.0,4e-05]
[1760108395953,3.85230131,120770.0,120760.0,4e-05]
[1760108396165,7.33460131,120770.0,120760.0,4e-05]
[1760108396415,2.28460131,120770.0,120760.0,4e-05]
[1760108396884,2.24464131,120770.0,120760.0,4e-05]
[1760108396886,1.98460131,120770.0,120760.0,4e-05]
[1760108397181,1.67253805,120770.0,120760.0,4e-05]
[1760108397419,2.22284385,120770.0,120760.0,4e-05]
[1760108397657,1.96280385,120770.0,120760.0,4e-05]
[1760108398158,2.24443851,120770.0,120760.0,4e-05]
[1760108398419,2.2918634,120770.0,120760.0,4e-05]
[1760108398675,1.98458776,120770.0,120760.0,4e-05]
[1760108398888,3.92066731,120770.0,120760.0,4e-05]
[1760108399383,4.03916339,120770.0,120760.0,4e-05]
[1760108399620,4.06077073,120770.0,120760.0,4e-05]
[1760108400070,4.32088075,120770.0,120760.0,4e-05]
[1760108400303,4.06092075,120770.0,120760.0,4e-05]
[1760108400763,4.06092075,120770.0,120710.0,0.00051897]
[1760108400764,1.40567263,120720.0,120710.0,0.00051897]
[1760108401054,1.07402101,120680.0,120650.0,0.06659503]
[1760108401281,0.04827,120660.0,120650.0,0.06659503]
[1760108401508,0.39777,120660.0,120650.0,0.0004]
[1760108401744,0.41317749,120660.0,120650.0,0.0004]
[1760108401988,0.36382726,120660.0,120650.0,0.0004]
[1760108402223,0.43465977,120660.0,120650.0,0.0004]
[1760108402484,0.39791977,120660.0,120650.0,0.0004]
[1760108402714,0.49955119,120660.0,120650.0,0.0004]
[1760108402972,0.75999119,120660.0,120650.0,0.0004]
[1760108403234,0.26058977,120660.0,120650.0,0.01697687]
[1760108403473,0.68624,120680.0,120650.0,0.04712877]
[1760108403708,0.0495,120670.0,120650.0,0.03105183]
[1760108403975,0.2606,120670.0,120650.0,0.03105183]
[1760108404204,0.31014,120660.0,120650.0,0.00089993]
[1760108404447,0.3,120670.0,120650.0,0.0174768]
[1760108404675,0.04774,120690.0,120660.0,0.0301519]
[1760108404676,0.34774,120690.0,120660.0,0.0301519]
[1760108404922,0.16940206,120690.0,120670.0,0.16573995]
[1760108405153,0.16940206,120690.0,120680.0,0.0301519]
[1760108405383,0.56885206,120690.0,120650.0,0.00089993]
[1760108405613,0.56885206,120690.0,120660.0,0.08312206]
[1760108405614,0.05397,120680.0,120660.0,0.08312206]
[1760108405836,0.13176,120690.0,120660.0,0.09453945]
[1760108406058,0.26052,120680.0,120670.0,0.0301519]
[1760108406282,0.26052,120680.0,120660.0,0.0301519]
[1760108406742,0.04548,120690.0,120660.0,0.69855278]
[1760108406979,0.26044,120680.0,120670.0,0.00207667]
[1760108407214,0.04548,120690.0,120670.0,0.00207667]
[1760108407446,0.13176,120690.0,120660.0,0.11327396]
[1760108407679,0.61433,120680.0,120660.0,0.08312206]
[1760108407900,0.61433,120680.0,120650.0,0.00089993]
[1760108407901,0.65397,120670.0,120650.0,0.00089993]
[1760108408123,0.30828637,120680.0,120650.0,0.10059886]
[1760108408457,0.38312206,120680.0,120650.0,0.0674468]
[1760108408718,0.26048,120670.0,120660.0,0.0301519]
[1760108408939,0.08312206,120680.0,120660.0,0.72336622]
[1760108409172,0.08628,120700.0,120670.0,0.10793412]
[1760108409407,0.31077,120690.0,120660.0,0.08312206]
[1760108409651,0.39945,120690.0,120660.0,0.08312206]
[1760108409866,0.26144,120680.0,120660.0,0.08312206]
[1760108410082,0.26144,120670.0,120660.0,0.0301519]
[1760108410310,0.48573,120690.0,120660.0,0.57175187]
[1760108410311,0.43176,120690.0,120660.0,0.57175187]
[1760108410539,0.43176,120690.0,120680.0,0.54159997]
[1760108410762,0.08628,120690.0,120680.0,0.54159997]
[1760108410980,0.13176,120690.0,120660.0,0.20463396]
[1760108411218,0.13176,120690.0,120680.0,0.54159997]
[1760108411219,0.08628,120690.0,120680.0,0.54159997]
[1760108411440,0.13176,120690.0,120660.0,0.11327396]
[1760108411666,0.44705,120690.0,120660.0,0.08312206]
[1760108411902,0.46574248,120670.0,120650.0,0.00089993]
[1760108412159,0.26128,120660.0,120650.0,0.00089993]
[1760108412388,0.05397,120660.0,120650.0,0.00089993]
[1760108412619,0.98312206,120670.0,120650.0,0.0174768]
[1760108412849,0.3,120680.0,120660.0,0.54159997]
[1760108413067,0.3,120680.0,120660.0,0.54419602]
[1760108413304,0.08628,120670.0,120650.0,0.08102183]
[1760108413546,0.3,120680.0,120660.0,0.71608203]
[1760108413547,0.08628,120680.0,120660.0,0.71608203]
[1760108413780,0.3,120700.0,120670.0,0.73794305]
[1760108414029,0.08628,120690.0,120680.0,0.1215119]
[1760108414290,0.65376363,120720.0,120680.0,0.25460396]
[1760108414537,0.65376363,120720.0,120710.0,0.0301519]
[1760108414538,0.10166041,120720.0,120710.0,0.0301519]
[1760108414782,0.00138627,120730.0,120710.0,0.25460396]
[1760108415026,0.26274627,120730.0,120720.0,0.11327396]
[1760108415265,0.89102548,120730.0,120680.0,0.04997]
[1760108415489,0.89102548,120730.0,120690.0,0.11327396]
[1760108415490,0.0495,120720.0,120690.0,0.11327396]
[1760108415747,0.12591,120710.0,120690.0,0.0301519]
[1760108416188,0.34968186,120710.0,120680.0,0.0301519]
[1760108416191,0.34139923,120710.0,120680.0,0.0301519]
[1760108416433,0.29686651,120720.0,120680.0,0.11327396]
[1760108416434,0.21373809,120720.0,120680.0,0.11327396]
[1760108416669,0.08628,120710.0,120700.0,0.0301519]
[1760108416900,0.00015166,120720.0,120710.0,0.1714819]
[1760108417141,0.00015166,120720.0,120710.0,0.25460396]
[1760108417381,0.26207166,120720.0,120710.0,0.0301519]
[1760108417841,0.09342166,120720.0,120670.0,0.66822937]
[1760108418078,0.16570359,120700.0,120680.0,0.20463396]
[1760108418315,0.13176,120690.0,120650.0,0.05037]
[1760108418561,0.3,120710.0,120660.0,0.93932687]
[1760108418802,0.08628,120700.0,120680.0,0.80066979]
[1760108419048,0.00015166,120720.0,120690.0,0.28722445]
[1760108419302,0.00015166,120720.0,120710.0,0.21565635]
[1760108419546,0.00138627,120730.0,120720.0,0.22082452]
[1760108419787,0.08728,120760.0,120740.0,0.0301519]
[1760108420031,0.0502,120750.0,120740.0,0.1714819]
[1760108420272,0.0502,120750.0,120740.0,0.149488]
[1760108420511,0.0502,120750.0,120740.0,0.11327396]
[1760108420750,0.0502,120750.0,120740.0,0.20463396]
[1760108421223,0.0502,120750.0,120740.0,0.78948921]
[1760108421473,0.26204,120750.0,120740.0,0.78948921]
[1760108421709,0.08743161,120760.0,120740.0,0.11315689]
[1760108421969,0.26179358,120760.0,120740.0,0.03003483]
[1760108422207,0.26179358,120760.0,120670.0,0.04997]
[1760108422208,0.1739276,120740.0,120680.0,0.24632679]
[1760108422450,0.03582,120730.0,120690.0,0.08312206]
[1760108422691,0.10169995,120730.0,120700.0,0.15755503]
[1760108422927,0.26236,120720.0,120700.0,0.16311886]
[1760108423153,0.2519395,120730.0,120700.0,0.17448206]
[1760108423388,0.2519395,120730.0,120670.0,0.14996999]
[1760108423389,0.29569431,120710.0,120670.0,0.14133]
[1760108423678,0.26236,120710.0,120680.0,0.17448206]
[1760108423906,0.8888395,120730.0,120680.0,0.82564941]
[1760108423907,0.59942249,120730.0,120680.0,0.82564941]
[1760108424135,0.08628,120720.0,120680.0,0.82614934]
[1760108424359,0.36403148,120720.0,120690.0,0.0301519]
[1760108424586,0.26228,120710.0,120700.0,0.03067094]
[1760108424807,1.28078989,120710.0,120700.0,0.00051904]
[1760108425041,1.58078989,120710.0,120700.0,0.00051904]
[1760108425281,1.0847109,120710.0,120700.0,0.00051904]
[1760108425529,0.44683148,120710.0,120700.0,0.00051904]
[1760108425759,0.10171148,120710.0,120700.0,0.00051904]
[1760108425975,0.47834148,120710.0,120700.0,0.00051904]
[1760108426205,0.64402783,120710.0,120700.0,0.00051904]
[1760108426435,0.27767148,120710.0,120700.0,0.00051904]
[1760108426665,0.36395148,120710.0,120700.0,0.00051904]
[1760108426904,0.94322783,120710.0,120700.0,0.00051904]
[1760108427160,1.68378359,120710.0,120700.0,0.00051904]
[1760108427395,1.40571381,120690.0,120680.0,0.00049993]
[1760108427620,2.14189573,120690.0,120680.0,0.00049993]
[1760108427868,2.23313573,120690.0,120680.0,0.00049993]
[1760108428101,2.23313573,120690.0,120680.0,0.00292478]
[1760108428328,2.67213833,120690.0,120680.0,0.00292478]
[1760108428558,1.97817833,120690.0,120680.0,0.00292478]
[1760108428819,1.38771923,120690.0,120680.0,0.00292478]
[1760108429061,1.81915923,120690.0,120680.0,0.00292478]
[1760108429293,1.77915923,120690.0,120680.0,0.00292478]
[1760108429512,2.01965365,120690.0,120680.0,0.00292478]
[1760108429740,0.34042778,120690.0,120680.0,0.00292478]
[1760108429969,0.10171148,120690.0,120680.0,0.00292478]
[1760108430199,0.01543148,120690.0,120680.0,0.00292478]
[1760108430431,0.27807148,120690.0,120680.0,0.00292478]
[1760108430654,0.01543148,120690.0,120680.0,0.76237916]
[1760108430876,0.10171148,120700.0,120680.0,0.75101596]
[1760108431099,0.10171148,120700.0,120690.0,0.08312206]
[1760108431385,0.36419148,120700.0,120680.0,0.09185993]
[1760108431606,0.26248,120690.0,120680.0,0.08362199]
[1760108431836,0.01543148,120690.0,120680.0,0.08362199]
[1760108432067,0.26741241,120700.0,120680.0,0.00049993]
[1760108432294,0.55554381,120690.0,120680.0,0.00049993]
[1760108432512,0.91649735,120690.0,120680.0,0.00049993]
[1760108432735,0.93393723,120690.0,120680.0,0.00049993]
[1760108432959,0.6,120670.0,120650.0,0.0004]
[1760108433191,0.71921,120660.0,120650.0,0.0004]
[1760108433442,0.47220148,120660.0,120650.0,0.0004]
[1760108433664,0.10171148,120660.0,120650.0,0.0305519]
[1760108433913,0.36407148,120660.0,120650.0,0.0305519]
[1760108434143,0.36403148,120660.0,120650.0,0.1105487]
[1760108434373,0.45258148,120660.0,120650.0,0.0004]
[1760108434608,0.36403148,120660.0,120650.0,0.0004]
[1760108435570,0.36403148,120660.0,120650.0,0.01697687]
[1760108435801,0.10171148,120660.0,120650.0,0.01697687]
[1760108436023,0.36411148,120660.0,120650.0,0.13025083]
[1760108436249,0.36407148,120660.0,120650.0,0.0305519]
[1760108436478,0.45262148,120660.0,120650.0,0.0004]
[1760108436729,1.03913855,120660.0,120650.0,0.0043831]
[1760108436972,1.05656993,120660.0,120650.0,0.0043831]
[1760108437212,1.05656993,120660.0,120650.0,0.0034931]
[1760108437213,1.70889498,120660.0,120650.0,0.0034931]
[1760108437440,7.02133498,120660.0,120650.0,0.0034931]
[1760108437679,6.79252624,120660.0,120650.0,0.0034931]
[1760108437916,6.73527632,120660.0,120650.0,0.0034931]
[1760108438139,3.02439632,120660.0,120650.0,0.0034931]
[1760108438371,2.65147722,120660.0,120650.0,0.0034931]
[1760108438837,2.3678032,120660.0,120650.0,0.0034931]
[1760108439276,0.80578249,120640.0,120630.0,0.00047]
[1760108439525,0.71598283,120640.0,120630.0,0.00047]
[1760108439760,1.48087145,120640.0,120630.0,0.00047]
[1760108439986,1.66401038,120640.0,120630.0,0.00047]
[1760108440213,1.40178422,120640.0,120630.0,0.00047]
[1760108440694,1.49804173,120640.0,120630.0,0.00047]
[1760108440914,0.48700529,120640.0,120630.0,0.00047]
[1760108441332,0.44700323,120640.0,120630.0,0.00047]
[1760108441333,0.44700323,120640.0,120630.0,0.1736919]
[1760108441334,0.36364323,120640.0,120630.0,0.1736919]
[1760108441527,0.08632,120650.0,120630.0,0.1736919]
[1760108441748,0.08632,120650.0,120630.0,0.00047]
[1760108441927,0.31738547,120670.0,120640.0,0.79856311]
[1760108442126,0.38632,120660.0,120630.0,0.0306219]
[1760108442367,0.01,120640.0,120630.0,0.0306219]
[1760108442498,0.01,120640.0,120630.0,0.00047]
[1760108442712,0.01,120640.0,120630.0,0.76888121]
[1760108442924,0.01,120640.0,120630.0,0.87607688]
[1760108442925,0.0095856,120640.0,120630.0,0.87607688]
[1760108443142,0.2719856,120640.0,120630.0,0.87607688]
[1760108443362,0.2720656,120640.0,120630.0,1.04187311]
[1760108443576,0.3,120680.0,120630.0,0.49965396]
[1760108443795,0.3,120690.0,120630.0,0.49965396]
[1760108443796,0.38632,120690.0,120670.0,0.54221915]
[1760108444018,0.08632,120700.0,120680.0,0.66694105]
[1760108444270,0.08632,120700.0,120690.0,0.81513449]
[1760108444473,0.08632,120730.0,120700.0,0.0384369]
[1760108444698,0.08632,120730.0,120720.0,0.0301519]
[1760108444924,0.08632,120730.0,120690.0,0.14307]
[1760108445145,0.40812206,120720.0,120690.0,0.54237081]
[1760108445366,0.3,120710.0,120690.0,0.00015166]
[1760108445588,0.26264,120700.0,120690.0,0.66371741]
[1760108445802,0.2626,120700.0,120690.0,0.03030356]
[1760108446057,0.26256,120700.0,120690.0,0.00015166]
[1760108446270,0.3,120710.0,120690.0,0.00015166]
[1760108446482,0.26252,120700.0,120690.0,0.00015166]
[1760108446720,0.3,120710.0,120690.0,0.00015166]
[1760108446989,0.26244,120700.0,120690.0,0.00015166]
[1760108447443,1.13614214,120700.0,120690.0,0.00015166]